fUST/lending_fUST_20240807
["ID","MTS","AMOUNT","RATE_DAILY","PERIOD"]
[334332971,1722988241653,-167.52681155,0.00019451,2]
[334332972,1722988241663,-505.97823788,0.00019477,2]
[334332973,1722988241673,-692.19370185,0.00019477,2]
[334332974,1722988241684,-237.0,0.00020522,2]
[334332975,1722988241696,-155.01550852,0.00020568,2]
[334332976,1722988241706,-1610.90790663,0.00020568,2]
[334332977,1722988241716,-236.26466488,0.00020568,2]
[334332978,1722988241725,-282.97223797,0.00021632,2]
[334332979,1722988241736,-388.90362127,0.00022109,2]
[334332980,1722988241746,-1626.04191113,0.0002334,2]
[334332981,1722988241757,-388.90362127,0.00025941,2]
[334332982,1722988241770,-388.90362127,0.00029773,2]
[334332983,1722988241780,-154.53514853,0.00032773,2]
[334332984,1722988241791,-154.53514853,0.00032775,2]
[334332985,1722988241802,-154.53514853,0.00032776,2]
[334332986,1722988241813,-764.39817392,0.00032776,2]
[334332987,1722988241823,-1928.88,0.00032856,3]
[334332988,1722988241833,-1607.4,0.00032856,3]
[334332989,1722988241845,-1339.5,0.00032856,3]
[334332990,1722988241856,-1116.25,0.00032856,3]
[334332991,1722988241866,-930.21,0.00032856,3]
[334332992,1722988241876,-775.17,0.00032856,3]
[334332993,1722988241886,-645.98,0.00032856,3]
[334332994,1722988241895,-538.32,0.00032856,3]
[334332995,1722988241905,-448.6,0.00032856,3]
[334332996,1722988241915,-373.83,0.00032856,3]
[334332997,1722988241924,-500.0,0.00032865,2]
[334332998,1722988241935,-373.85581718,0.00032865,2]
[334332999,1722988241945,-500.0,0.00032865,2]
[334333000,1722988241955,-256.97469656,0.00032865,2]
[334333001,1722988241965,-62004.53151734,0.00032866,4]
[334333002,1722988241978,-547.3820516,0.00032866,4]
[334333003,1722988242259,-413.75162727,0.00019451,2]
[334333004,1722988242270,-186.66166954,0.00020568,2]
[334333005,1722988242279,-311.52,0.00032856,3]
[334333006,1722988242290,-25999.966206,0.00032866,4]
[334333016,1722988243465,-3300.1543449,0.00032866,4]
[334333017,1722988243524,-347.85600012,0.00032866,4]
[334333018,1722988243594,-84.24501928,0.00032866,4]
[334333035,1722988246633,-7425.7581266,0.00032866,4]
[334333085,1722988250359,2231.4870139,0.00027,120]
[334333101,1722989235268,-253.18475952,0.00014047,2]
[334333102,1722989235292,-1362.90304929,0.00014147,2]
[334333103,1722989242123,-442.37386368,0.00014147,2]
[334333104,1722989242144,-159.483367,0.00014247,2]
[334333105,1722989242168,-5.60520258,0.00016073,2]
[334333123,1722989364142,-300.0,0.00016072,2]
[334333124,1722989364166,-6886.35500351,0.00016073,2]
[334333125,1722989364207,-9055.45103852,0.00016073,2]
[334333126,1722989364229,-2104.4742771,0.00016073,2]
[334333127,1722989364250,-450.77219538,0.00016073,2]
[334333128,1722989364272,-2225.88181132,0.00016073,2]
[334333129,1722989364292,-10838.5642707,0.00016427,2]
[334333130,1722989364314,-24900.0,0.00016752,2]
[334333131,1722989364336,-348.2575741,0.00016795,2]
[334333132,1722989364356,-245.929112,0.00016795,2]
[334333133,1722989364394,-1141.6599409,0.00017125,2]
[334333134,1722989364419,-250.0,0.00017176,2]
[334333135,1722989364441,-657.98471143,0.00017176,2]
[334333136,1722989364464,-250.0,0.00017223,2]
[334333137,1722989364487,-250.0,0.0001727,2]
[334333138,1722989364510,-250.0,0.00017317,2]
[334333139,1722989364532,-250.0,0.00017365,2]
[334333140,1722989364555,-250.0,0.00017412,2]
[334333141,1722989364577,-250.0,0.00017459,2]
[334333142,1722989364600,-250.0,0.00017506,2]
[334333143,1722989364621,-334.9835458,0.00017538,2]
[334333144,1722989364649,-250.0,0.00017553,2]
[334333145,1722989364670,-250.0,0.000176,2]
[334333146,1722989364692,-250.0,0.00017647,2]
[334333147,1722989364714,-420.0,0.00017679,2]
[334333148,1722989364737,-250.0,0.00017694,2]
[334333149,1722989364759,-250.0,0.00017741,2]
[334333150,1722989364780,-250.0,0.00017788,2]
[334333151,1722989364802,-250.0,0.00017836,2]
[334333152,1722989364824,-250.0,0.00017883,2]
[334333153,1722989364846,-250.0,0.0001793,2]
[334333154,1722989364868,-250.0,0.00017977,2]
[334333155,1722989364892,-250.0,0.00018024,2]
[334333156,1722989364914,-250.0,0.00018071,2]
[334333157,1722989364934,-203.71830668,0.00018177,2]
[334333158,1722989364956,-403.74175046,0.00018489,2]
[334333159,1722989364977,-932.36255016,0.00018679,2]
[334333160,1722989364998,-727.66907435,0.0001872,2]
[334333161,1722989365020,-1109.04434069,0.00019167,2]
[334333162,1722989365042,-2849.31423163,0.00019177,2]
[334333163,1722989365063,-156.5831392,0.00019177,2]
[334333164,1722989365085,-20273.10071534,0.00019177,2]
[334333165,1722989365106,-181.013742,0.00019178,2]
[334333166,1722989365128,-2358.0929872,0.00019413,2]
[334333167,1722989365153,-587.0,0.00019447,2]
[334333168,1722989365177,-1091.57771247,0.00019451,2]
[334333169,1722989365198,-5236.41679691,0.00019451,2]
[334333170,1722989365222,-162.40537104,0.00019451,2]
[334333171,1722989365244,-532.14086008,0.00019477,2]
[334333172,1722989365265,-336.12056396,0.00019477,2]
[334333173,1722989365286,-160.60306997,0.00019477,2]
[334333174,1722989365312,-250.66796389,0.00019477,2]
[334333175,1722989365336,-201.65870666,0.00019477,2]
[334333176,1722989365358,-180.51285937,0.00019477,2]
[334333177,1722989365383,-205.998322,0.00019477,2]
[334333178,1722989365404,-155.06124344,0.00019477,2]
[334333179,1722989365425,-214.02473386,0.00019477,2]
[334333180,1722989365448,-306.91818468,0.00019482,2]
[334333181,1722989365470,-209.86849569,0.00019482,2]
[334333182,1722989365492,-205.44005077,0.00019546,2]
[334333183,1722989365514,-175.60480926,0.00019546,2]
[334333184,1722989365537,-500.0,0.00019546,2]
[334333185,1722989365560,-357.56463039,0.00019546,2]
[334333186,1722989372533,2108.95048088,0.00016073,2]
[334333187,1722989376703,3609.28567796,0.00016073,2]
[334333188,1722989384244,179.47265816,0.00016073,2]
[334333201,1722989391870,156.78302952,0.00016073,2]
[334333202,1722989394854,495.69249869,0.00016073,2]
[334333203,1722989394885,2325.86058719,0.00016073,2]
[334333204,1722989394908,6448.26049046,0.00016073,2]
[334333205,1722989401280,218.36320889,0.00016073,2]
[334333209,1722989412308,2030.65796342,0.00016073,2]
[334333210,1722989418524,229.99003352,0.00016073,2]
[334333220,1722989432546,-329.16322832,0.00016073,2]
[334333227,1722989432601,-1710.65187877,0.00016073,2]
[334333230,1722989432614,-1333.08251598,0.00016073,2]
[334333231,1722989432623,-154.91692567,0.00019451,2]
[334333232,1722989432634,-154.82195475,0.00019451,2]
[334333233,1722989432645,-543.08033701,0.00019477,2]
[334333234,1722989432655,-154.60575532,0.00019477,2]
[334333235,1722989432664,-265.65357384,0.00019477,2]
[334333236,1722989432674,-154.80649189,0.00019477,2]
[334333237,1722989432685,-300.0,0.00019481,2]
[334333238,1722989432696,-2846.76378818,0.00019482,2]
[334333239,1722989432710,-87.90372385,0.00019482,2]
[334333240,1722989432814,-67.49582592,0.00019482,2]
[334333241,1722989432833,-526.38411215,0.00019482,2]
[334333242,1722989432843,-35.62834785,0.00019482,2]
[334333280,1722989440766,-171.666936,0.00019447,2]
[334333281,1722989440776,-319.94714401,0.00019482,2]
[334333282,1722989440786,-5236.41679691,0.00019482,2]
[334333283,1722989440801,-275.60615442,0.00019482,2]
[334333284,1722989440811,-180.41136886,0.00019482,2]
[334333285,1722989440821,-154.82572926,0.00019482,2]
[334333286,1722989440831,-300.99621399,0.00019482,2]
[334333287,1722989440840,-218.93063313,0.00019482,2]
[334333288,1722989440850,-512.8257881,0.00019547,2]
[334333289,1722989440860,-209.22780874,0.00019999,2]
[334333290,1722989440870,-188.40898191,0.0002,2]
[334333291,1722989440879,-282.76566051,0.00020269,2]
[334333292,1722989440889,-300.0,0.00020279,2]
[334333293,1722989440898,-810.1149959,0.0002028,2]
[334333294,1722989440908,-154.60575532,0.00020721,2]
[334333295,1722989440917,-356.45346079,0.00020999,2]
[334333296,1722989440927,-1443.89362386,0.00021011,2]
[334333297,1722989440937,-155.00974224,0.00021048,2]
[334333298,1722989440946,-709.64530844,0.00021048,2]
[334333299,1722989440956,-951.65187642,0.00021048,2]
[334333300,1722989440965,-176.20179704,0.00021048,2]
[334333301,1722989440975,-664.23911189,0.00021048,2]
[334333302,1722989440985,-309.21151064,0.0002142,2]
[334333303,1722989440994,-628.96366144,0.0002142,2]
[334333304,1722989441004,-426.89711274,0.0002142,2]
[334333305,1722989441013,-166.09859939,0.0002142,4]
[334333306,1722989441023,-154.77557542,0.0002142,2]
[334333307,1722989441032,-154.77557542,0.0002142,2]
[334333308,1722989441042,-154.77557542,0.0002142,2]
[334333309,1722989441055,-287.82937614,0.0002142,2]
[334333310,1722989441066,-154.79103211,0.0002142,2]
[334333311,1722989441076,-156.73199194,0.0002142,2]
[334333312,1722989441086,-534.02405776,0.0002142,2]
[334333313,1722989441096,-1138.57216381,0.00021489,2]
[334333314,1722989441106,-568.56884199,0.00021532,2]
[334333315,1722989441116,-160.13374187,0.00021532,2]
[334333316,1722989441127,-156.85069415,0.00021532,2]
[334333317,1722989441137,-174.56235819,0.00021532,2]
[334333318,1722989441148,-201.4758121,0.00021532,2]
[334333319,1722989441160,-506.48190828,0.00021532,2]
[334333320,1722989441172,-187.16186862,0.00021532,2]
[334333321,1722989441183,-251.2547148,0.00021542,2]
[334333322,1722989441195,-351.65731587,0.00021542,2]
[334333323,1722989441205,-597.59,0.00021572,3]
[334333324,1722989441215,-199.18,0.00021581,3]
[334333325,1722989441225,-28183.4321828,0.00021582,3]
[334333326,1722989441236,-342.05014288,0.00021589,2]
[334333327,1722989441246,-381.1735957,0.00021591,2]
[334333328,1722989441256,-150.112233,0.000216,3]
[334333329,1722989441266,-191.41077215,0.00021602,2]
[334333330,1722989441276,-231.23669746,0.00021609,2]
[334333331,1722989441286,-154.69833824,0.00021609,2]
[334333332,1722989441296,-435.0,0.00021632,2]
[334333333,1722989441307,-494.3368924,0.00021642,2]
[334333334,1722989441317,-522.26012374,0.00021916,2]
[334333335,1722989441328,-154.76012181,0.00021916,2]
[334333336,1722989441340,-302.24446742,0.00022,2]
[334333337,1722989441353,-302.24446742,0.0002222,2]
[334333338,1722989441365,-420.0,0.00022307,2]
[334333339,1722989441376,-302.24446742,0.0002244,2]
[334333340,1722989441386,-302.24446742,0.0002266,2]
[334333341,1722989441398,-302.24446742,0.0002288,2]
[334333342,1722989441408,-398.36,0.00022951,3]
[334333343,1722989441419,-151.28805363,0.000231,4]
[334333344,1722989441430,-587.0,0.00024538,2]
[334333345,1722989441444,-200.0,0.00024658,15]
[334333346,1722989441454,-402.40869281,0.00026569,2]
[334333347,1722989441463,-279.49039006,0.000269,2]
[334333348,1722989441473,-28183.4321828,0.0002698,3]
[334333349,1722989441483,-500.0,0.00026989,2]
[334333350,1722989441493,-384.31197049,0.00026989,2]
[334333351,1722989441503,-26133.83739746,0.0002699,3]
[334333356,1722989443598,-154.74467129,0.00021048,2]
[334333357,1722989443608,-222.44145668,0.0002142,2]
[334333358,1722989443617,-154.98939785,0.0002142,2]
[334333359,1722989443627,-1138.57216376,0.00023806,2]
[334333360,1722989443637,-2049.59478534,0.0002699,3]
[334333361,1722989443646,-823.0,0.00026991,2]
[334333362,1722989443656,-1626.04191113,0.00027,2]
[334333363,1722989443665,-5822.56987415,0.00027,2]
[334333377,1722989446744,-154.72922386,0.00019482,2]
[334333379,1722989446754,-810.1149959,0.00019999,2]
[334333382,1722989446765,-154.60575532,0.0002028,2]
[334333384,1722989446775,-1138.57216376,0.00026123,2]
[334333386,1722989446785,-1074.12388947,0.00027,2]
[334333388,1722989446794,-200.0,0.00027,2]
[334333390,1722989446804,-150.112233,0.000272,7]
[334333392,1722989446813,-279.49039002,0.00028369,2]
[334333394,1722989446823,-400.0,0.0002837,2]
[334333396,1722989446834,-1038.25134865,0.0002969,2]
[334333397,1722989446846,-113.74865135,0.0002969,2]
[334333399,1722989446859,-279.49039002,0.00029838,2]
[334333401,1722989446869,-600.0,0.00030373,2]
[334333403,1722989446878,-279.49039002,0.00031307,2]
[334333404,1722989446888,-159.483367,0.00031781,2]
[334333405,1722989446897,-809.0,0.0003266,2]
[334333407,1722989446908,-800.0,0.00032714,2]
[334333408,1722989446918,-279.49039002,0.00032776,2]
[334333409,1722989446927,-772.89148696,0.00032776,2]
[334333411,1722989446936,-106581.66890513,0.00032856,4]
[334333434,1722990438129,-159.483367,0.00014247,2]
[334333435,1722990438157,-1640.29959872,0.00018605,2]
[334333436,1722990439152,-600.86454381,0.00018605,2]
[334333437,1722990548318,-449.290369,0.00017529,2]
[334333438,1722990548340,-3313.2624382,0.00017529,2]
[334333439,1722990548362,-250.0,0.00017927,2]
[334333440,1722990548385,-250.0,0.00017976,2]
[334333441,1722990548408,-250.0,0.00018025,2]
[334333442,1722990548431,-250.0,0.00018074,2]
[334333443,1722990548453,-250.0,0.00018124,2]
[334333444,1722990548476,-241.5927101,0.00018158,2]
[334333445,1722990548499,-250.0,0.00018173,2]
[334333446,1722990548522,-250.0,0.00018222,2]
[334333447,1722990548548,-300.0,0.0001827,2]
[334333448,1722990548570,-250.0,0.00018271,2]
[334333449,1722990548591,-250.0,0.0001832,2]
[334333450,1722990548615,-250.0,0.0001837,2]
[334333451,1722990548638,-250.0,0.00018419,2]
[334333452,1722990548661,-250.0,0.00018468,2]
[334333453,1722990548684,-250.0,0.00018517,2]
[334333454,1722990548708,-250.0,0.00018566,2]
[334333455,1722990548731,-758.83585747,0.00018605,2]
[334333456,1722990548754,-744.59992376,0.00018605,2]
[334333460,1722990573136,-924.41062667,0.00018605,2]
[334333461,1722990573158,-437.78644205,0.00018605,2]
[334333462,1722990573181,-838.51982186,0.00018605,2]
[334333463,1722990573202,-218.93063313,0.00018605,2]
[334333464,1722990573224,-250.0,0.00018615,2]
[334333465,1722990573247,-250.0,0.00018665,2]
[334333466,1722990573271,-250.0,0.00018714,2]
[334333467,1722990573294,-250.0,0.00018763,2]
[334333468,1722990573319,-250.0,0.00018812,2]
[334333469,1722990573340,-155.89114501,0.00018845,2]
[334333470,1722990573362,-250.0,0.00018861,2]
[334333471,1722990573385,-517.21281943,0.00018912,2]
[334333472,1722990573408,-24900.0,0.00018913,2]
[334333473,1722990573429,-154.60575532,0.00018945,2]
[334333474,1722990573451,-250.38146921,0.00019177,2]
[334333475,1722990573472,-172.023901,0.00019178,2]
[334333476,1722990573493,-196.46943428,0.00019256,2]
[334333477,1722990573514,-154.60575532,0.00019451,2]
[334333478,1722990573539,-1654.19632821,0.00019451,2]
[334333479,1722990573559,-942.61257937,0.00019451,2]
[334333480,1722990573582,-522.39318645,0.00019451,2]
[334333481,1722990573603,-156.96415589,0.00019451,2]
[334333482,1722990573627,-201.51336171,0.00019451,2]
[334333483,1722990573648,-183.14226192,0.00019451,2]
[334333484,1722990573668,-5236.41679691,0.00019477,2]
[334333485,1722990573689,-319.78809537,0.00019477,2]
[334333486,1722990573710,-180.51285937,0.00019477,2]
[334333487,1722990573732,-244.89233153,0.00019477,2]
[334333488,1722990573756,-194.52836309,0.00019477,2]
[334333489,1722990573778,-816.39879119,0.00019477,2]
[334333490,1722990573798,-159.24043179,0.00019477,2]
[334333491,1722990573819,-42030.9255906,0.00019477,2]
[334333492,1722990573840,-694.25197697,0.00019477,2]
[334333493,1722990573861,-160.19468673,0.00019477,2]
[334333494,1722990573882,-180.51285937,0.00019477,2]
[334333495,1722990573903,-3016.6472157,0.00019517,2]
[334333496,1722990573923,-301.05042954,0.00019547,2]
[334333497,1722990573944,-543.18145857,0.00019547,2]
[334333498,1722990573965,-165.68278241,0.00019547,2]
[334333499,1722990573986,-810.1149959,0.00019547,2]
[334333500,1722990574007,-403.81861762,0.00019547,2]
[334333501,1722990574028,-242.81247708,0.00019547,2]
[334333502,1722990574050,-150.112233,0.000196,2]
[334333503,1722990574076,-432.05,0.0001998,3]
[334333504,1722990574097,-216.02,0.0001998,3]
[334333505,1722990574118,-343.01785285,0.00019989,2]
[334333506,1722990574139,-500.0,0.00019989,2]
[334333507,1722990574160,-179.61238739,0.00019989,2]
[334333508,1722990574182,-500.0,0.00019989,2]
[334333509,1722990574202,-562.20242388,0.00019989,2]
[334333510,1722990574224,-543.89770091,0.00019989,2]
[334333511,1722990574245,-500.0,0.00019989,2]
[334333512,1722990574266,-500.0,0.00019989,2]
[334333513,1722990574287,-500.0,0.00019989,2]
[334333514,1722990574310,-500.0,0.00019989,2]
[334333515,1722990574332,-500.0,0.00019989,2]
[334333516,1722990574356,-21795.11247799,0.0001999,2]
[334333597,1722990631895,-3602.88765659,0.00018605,2]
[334333600,1722990631904,-154.60575532,0.00019256,2]
[334333603,1722990631914,-201.51336171,0.00019451,2]
[334333607,1722990631923,-154.60575532,0.00019477,2]
[334333610,1722990631933,-849.56796357,0.00019477,2]
[334333613,1722990631942,-300.0,0.00019546,2]
[334333616,1722990631951,-205.1880395,0.00019547,2]
[334333618,1722990631961,-174.56235819,0.00019547,2]
[334333621,1722990631970,-961.97481851,0.00019547,2]
[334333623,1722990631980,-154.77557542,0.00019547,2]
[334333625,1722990631989,-540.53135974,0.00019547,4]
[334333627,1722990631998,-652.95626155,0.00019547,2]
[334333629,1722990632007,-1069.26611271,0.00019899,2]
[334333631,1722990632016,-145.52224448,0.0001999,2]
[334333632,1722990632028,-604.99998376,0.0001999,2]
[334333633,1722990632039,-1008.66608802,0.0001999,2]
[334333635,1722990632055,-466.0,0.0001999,2]
[334333641,1722990632103,-52.24037832,0.0001999,2]
[334333681,1722990638300,-174.56235819,0.00019477,2]
[334333682,1722990638310,-3351.22019784,0.000199,2]
[334333683,1722990638321,-30937.88405673,0.0001999,2]
[334333684,1722990638330,-648.1,0.0001999,3]
[334333685,1722990638340,-413.99267103,0.00019999,2]
[334333686,1722990638350,-525.40068433,0.00019999,2]
[334333687,1722990638360,-154.60575532,0.00019999,2]
[334333688,1722990638371,-154.60575532,0.00019999,2]
[334333689,1722990638385,-500.82339587,0.00019999,2]
[334333690,1722990638401,-532.00289109,0.00019999,2]
[334333691,1722990638411,-240.11249699,0.00019999,2]
[334333692,1722990638421,-500.0,0.00019999,2]
[334333693,1722990638431,-500.0,0.00019999,2]
[334333695,1722990638442,-500.0,0.00019999,2]
[334333696,1722990638452,-230.72839063,0.00019999,2]
[334333697,1722990638461,-493.54169671,0.00019999,2]
[334333698,1722990638472,-500.0,0.00019999,2]
[334333699,1722990638482,-500.0,0.00019999,2]
[334333700,1722990638492,-21055.83804624,0.0002,2]
[334333701,1722990638502,-156.37509576,0.0002,2]
[334333702,1722990638512,-53070.45579001,0.0002,2]
[334333703,1722990638521,-1443.89362386,0.0002,2]
[334333704,1722990638531,-294.13159854,0.0002,2]
[334333705,1722990638541,-427.05357238,0.0002,2]
[334333706,1722990638551,-435.0,0.0002,2]
[334333708,1722990638565,-200.0,0.0002,2]
[334333710,1722990638574,-240.84967759,0.0002028,2]
[334333712,1722990638584,-240.84967759,0.0002028,2]
[334333714,1722990638595,-154.69833824,0.00020721,2]
[334333716,1722990638605,-287.82937614,0.00020721,2]
[334333718,1722990638615,-342.05014288,0.00020721,2]
[334333720,1722990638625,-209.22780874,0.00020999,2]
[334333722,1722990638640,-209.22780874,0.00020999,2]
[334333723,1722990638650,-154.82195475,0.00020999,2]
[334333724,1722990638663,-296.9978574,0.00021,2]
[334333725,1722990638673,-864.1,0.0002135,3]
[334333726,1722990638683,-432.04,0.0002135,3]
[334333727,1722990638692,-400.0,0.0002137,2]
[334333728,1722990638703,-156.85069415,0.0002142,2]
[334333729,1722990638713,-506.48190828,0.0002142,2]
[334333730,1722990638723,-156.73199194,0.0002142,2]
[334333732,1722990638734,-534.02405776,0.0002142,2]
[334333734,1722990638743,-154.77557542,0.0002142,2]
[334333736,1722990638753,-420.0,0.00021501,2]
[334333738,1722990638763,-166.09859939,0.00021532,4]
[334333741,1722990638775,-568.56884199,0.00021532,2]
[334333743,1722990638785,-154.79103211,0.00021532,2]
[334333745,1722990638795,-154.60575532,0.00021542,2]
[334333747,1722990638805,-709.64530844,0.00021542,2]
[334333749,1722990638815,-154.60575532,0.00021542,2]
[334333751,1722990638826,-154.77557542,0.00021542,2]
[334333753,1722990638836,-154.60575532,0.00021542,2]
[334333755,1722990638847,-664.23911189,0.00021589,2]
[334333757,1722990638856,-155.00974224,0.00021589,2]
[334333759,1722990638867,-356.45346079,0.00021591,2]
[334333761,1722990638877,-309.21151064,0.00021591,2]
[334333763,1722990638898,-231.23669746,0.00021599,2]
[334333765,1722990638908,-156.63892832,0.00021599,2]
[334333767,1722990638919,-494.3368924,0.00021609,2]
[334333769,1722990638928,-251.2547148,0.00021632,2]
[334333771,1722990638938,-951.65187642,0.00021642,2]
[334333774,1722990638948,-157.83841247,0.00021805,2]
[334333776,1722990638958,-154.60575532,0.00021805,2]
[334333778,1722990638968,-413.01700224,0.00021906,2]
[334333780,1722990638978,-155.09976201,0.00021906,2]
[334333782,1722990638988,-154.82572926,0.00021906,2]
[334333784,1722990638998,-512.8257881,0.00021916,2]
[334333786,1722990639009,-275.60615442,0.00021916,2]
[334333788,1722990639020,-267.69783436,0.00021916,2]
[334333790,1722990639030,-302.27461649,0.00022,2]
[334333792,1722990639040,-881.61577024,0.0002217,2]
[334333794,1722990639050,-302.27461649,0.0002222,2]
[334333796,1722990639060,-1069.26611265,0.00022365,2]
[334333798,1722990639070,-302.27461649,0.0002244,2]
[334333800,1722990639081,-244.84557874,0.00022551,2]
[334333802,1722990639091,-5236.41679691,0.00022551,2]
[334333804,1722990639100,-303.46964383,0.00022551,2]
[334333806,1722990639110,-301.05042954,0.00022551,2]
[334333808,1722990639120,-628.82108437,0.00022551,2]
[334333810,1722990639132,-319.94714401,0.00022551,2]
[334333812,1722990639142,-160.10326944,0.00022551,2]
[334333814,1722990639152,-816.39879119,0.00022551,2]
[334333816,1722990639161,-302.27461649,0.0002266,2]
[334333818,1722990639171,-302.27461649,0.0002288,2]
[334333820,1722990639181,-1245.605888,0.00023,2]
[334333822,1722990639191,-151.13730826,0.000231,4]
[334333824,1722990639201,-600.0,0.00023373,2]
[334333826,1722990639211,-587.0,0.00023651,2]
[334333828,1722990639220,-452.66073464,0.0002423,2]
[334333830,1722990639231,-250.38146921,0.0002423,2]
[334333832,1722990639241,-319.66723877,0.0002423,2]
[334333834,1722990639251,-542.97921537,0.0002423,2]
[334333836,1722990639260,-180.51285937,0.0002423,2]
[334333838,1722990639270,-183.07130814,0.0002423,2]
[334333841,1722990639280,-403.74175046,0.0002423,2]
[334333843,1722990639290,-200.0,0.00024658,15]
[334333844,1722990639300,-1069.26611265,0.00024831,2]
[334333846,1722990639310,-189.55103082,0.00025,2]
[334333848,1722990639320,-2059.47395771,0.00025,2]
[334333851,1722990639330,-150.112233,0.000252,8]
[334333853,1722990639340,-259.6,0.00025704,3]
[334333855,1722990639350,-800.0,0.00025714,2]
[334333857,1722990639359,-150.112233,0.00026,9]
[334333859,1722990639369,-823.0,0.00026016,2]
[334333860,1722990639380,-449.290369,0.00026294,2]
[334333862,1722990639389,-402.40869281,0.00026559,2]
[334333865,1722990639400,-150.112233,0.000267,8]
[334333867,1722990639410,-27505.2126147,0.00027099,3]
[334333868,1722990639419,-1069.26611265,0.00027297,2]
[334333871,1722990639429,-344.47417328,0.00027396,2]
[334333873,1722990639441,-150.112233,0.000275,10]
[334333875,1722990639451,-150.112233,0.000283,6]
[334333878,1722990639461,-1000.0,0.00028305,2]
[334333880,1722990639471,-1152.0,0.00028618,2]
[334333882,1722990639481,-150.112233,0.00029,7]
[334333884,1722990639491,-1069.26611265,0.00029762,2]
[334333886,1722990639502,-150.112233,0.000298,8]
[334333888,1722990639511,-1000.0,0.0003,2]
[334333891,1722990639521,-2499.02,0.0003058,18]
[334333894,1722990639530,-150.112233,0.000306,9]
[334333896,1722990639541,-628.22678493,0.00030729,2]
[334333898,1722990639551,-27505.2126147,0.0003099,4]
[334333900,1722990639566,-58426.19262462,0.00031,2]
[334333902,1722990639576,-264.871981,0.00031,7]
[334333904,1722990639586,-151.0,0.00031,7]
[334333906,1722990639597,-264.871981,0.00031,7]
[334333908,1722990639607,-151.0,0.00031,7]
[334333911,1722990639617,-1200.0,0.000311,2]
[334333913,1722990639628,-150.112233,0.000313,10]
[334333915,1722990639642,-953.0,0.00031479,2]
[334333917,1722990639651,-188.26194,0.00031507,120]
[334333919,1722990639662,-150.112233,0.000321,8]
[334333921,1722990639673,-1069.26611265,0.00032228,2]
[334333923,1722990639684,-695.6023383,0.00032776,2]
[334333925,1722990639695,-27505.2126147,0.00032855,4]
[334333927,1722990639704,-2184.70122417,0.00032856,4]
[334333930,1722990639715,-264.871981,0.00032856,7]
[334333932,1722990639727,-151.0,0.00032856,7]
[334333934,1722990639737,-264.871981,0.00032856,7]
[334333936,1722990639749,-151.0,0.00032856,7]
[334333938,1722990639760,-2000.0,0.00032865,2]
[334333941,1722990639774,-282.76566051,0.00032865,2]
[334333951,1722990639784,-4949.904198,0.00032865,7]
[334333953,1722990639872,-4949.904198,0.00032865,7]
[334333955,1722990639882,-151.0,0.00032865,7]
[334333957,1722990639891,-151.0,0.00032865,7]
[334333959,1722990639902,-7309.52046099,0.00032865,21]
[334333961,1722990639913,-70076.85748523,0.00032866,4]
[334334010,1722990640381,-3024.17827766,0.00032866,4]
[334334011,1722990640392,-1147.93713763,0.00032866,4]
[334334012,1722990640405,-510.94687324,0.00032866,4]
[334334013,1722990640630,-154.60575532,0.00019547,2]
[334334014,1722990640641,-155.82402534,0.0002423,2]
[334334015,1722990640653,-35260.93068524,0.00032866,4]
[334334016,1722990640662,-151.0,0.00032866,7]
[334334017,1722990640672,-151.0,0.00032866,7]
[334334018,1722990640681,-249.512502,0.00032866,7]
[334334019,1722990640690,-249.512502,0.00032866,7]
[334334020,1722990640700,-151.0,0.00032866,7]
[334334021,1722990640709,-151.0,0.00032866,7]
[334334022,1722990640718,-151.0,0.00032866,7]
[334334023,1722990640728,-151.0,0.00032866,7]
[334334024,1722990640737,-151.0,0.00032866,7]
[334334025,1722990640746,-151.0,0.00032866,7]
[334334026,1722990640755,-184.809107,0.00032866,7]
[334334027,1722990640764,-151.0,0.00032866,7]
[334334028,1722990640775,-184.809107,0.00032866,7]
[334334029,1722990640785,-151.0,0.00032866,7]